bitfinex-derivatives/quotes_SOLF0:USTF0_20250901
["timestamp","ask_amount","ask_price","bid_price","bid_amount"]
[1756728772761,127.45,199.8,199.79,4.58183962]
[1756728773163,123.6,199.8,199.79,4.58183962]
[1756728773866,127.45,199.8,199.79,4.58183962]
[1756728774966,3.85,199.79,199.75,0.03252179]
[1756728775171,3.86,199.79,199.76,4.58600725]
[1756728775371,123.6,199.8,199.77,4.58600725]
[1756728775671,3.86,199.79,199.78,4.58600725]
[1756728777768,6.06761432,199.79,199.78,4.58600725]
[1756728780369,6.56761432,199.79,199.78,4.58600725]
[1756728780572,2.20761432,199.79,199.75,0.03252179]
[1756728780969,3.86,199.78,199.75,0.03252179]
[1756728783272,2.20761432,199.79,199.75,0.03252179]
[1756728783476,123.54,199.78,199.75,0.03252179]
[1756728783774,127.4,199.78,199.75,0.03252179]
[1756728783968,2.20761432,199.76,199.75,0.03252179]
[1756728784168,6.06761432,199.76,199.75,0.03252179]
[1756728784568,3.86,199.76,199.66,7.9]
[1756728784774,2.20761432,199.74,199.66,7.9]
[1756728784975,123.54,199.73,199.66,7.9]
[1756728785778,0.03302225,199.71,199.63,4.18139307]
[1756728786075,0.03302225,199.71,199.64,7.9]
[1756728791779,2.24063657,199.71,199.64,7.9]
[1756728792379,2.24063657,199.71,199.61,12.11139307]
[1756728792577,2.24063657,199.71,199.61,7.93]
[1756728794684,0.8719073,199.69,199.61,7.93]
[1756728795085,2.20761432,199.68,199.61,7.93]
[1756728795378,0.0375561,199.67,199.61,7.93]
[1756728807193,0.0375561,199.67,199.64,7.93]
[1756728808997,0.0375561,199.67,199.63,2.20761432]
[1756728809195,0.0375561,199.67,199.64,7.93]
[1756728809397,0.0375561,199.67,199.63,2.20761432]
[1756728809789,0.0375561,199.67,199.64,7.93]
[1756728809994,0.0375561,199.67,199.63,2.20761432]
[1756728810488,0.0375561,199.67,199.64,7.93]
[1756728811088,0.0375561,199.67,199.63,2.20761432]
[1756728811398,0.0375561,199.67,199.64,7.93]
[1756728811600,0.0375561,199.67,199.63,2.20761432]
[1756728811800,0.0375561,199.67,199.64,7.93]
[1756728812390,0.0375561,199.67,199.63,2.20761432]
[1756728812894,0.0375561,199.67,199.64,7.93]
[1756728813697,0.0375561,199.67,199.63,2.20761432]
[1756728813998,0.0375561,199.67,199.64,7.93]
[1756728814390,0.0375561,199.67,199.63,2.20761432]
[1756728814895,0.0375561,199.67,199.64,7.93]
[1756728815094,0.0375561,199.67,199.63,2.20761432]
[1756728815295,0.0375561,199.67,199.64,7.93]
[1756728815495,0.0375561,199.67,199.63,2.20761432]
[1756728816090,0.0375561,199.67,199.64,7.93]
[1756728816404,0.0375561,199.67,199.63,2.20761432]
[1756728816995,0.0375561,199.67,199.64,7.93]
[1756728817802,0.0375561,199.67,199.61,14.31900739]
[1756728819102,0.0375561,199.67,199.61,7.93]
[1756728820304,0.0375561,199.67,199.6,4.18139307]
[1756728823402,0.0375561,199.67,199.6,11.60139307]
[1756728823605,0.0375561,199.67,199.61,7.42]
[1756728824101,0.0375561,199.67,199.61,11.60139307]
[1756728824700,0.0375561,199.67,199.61,7.42]
[1756728827512,0.0375561,199.67,199.58,11.60139307]
[1756728828020,0.0375561,199.67,199.58,7.42]
[1756728828021,2.20761432,199.66,199.58,7.42]
[1756728829416,2.20761432,199.63,199.55,7.42]
[1756728829611,3.85,199.65,199.55,7.42]
[1756728830013,6.0,199.64,199.55,7.42]
[1756728830207,0.03522987,199.62,199.55,7.42]
[1756728833120,0.03522987,199.62,199.57,2.20761432]
[1756728833523,0.03522987,199.62,199.58,7.42]
[1756728834019,0.03522987,199.62,199.58,4.18139307]
[1756728834216,0.03522987,199.62,199.59,7.42]
[1756728835218,0.03522987,199.62,199.58,4.18139307]
[1756728835620,0.03522987,199.62,199.59,7.42]
[1756728836020,0.03522987,199.62,199.6,7.42]
[1756728836222,2.20761432,199.7,199.6,7.42]
[1756728837029,340.57,199.71,199.6,7.42]
[1756728837227,336.72,199.71,199.63,7.42]
[1756728837726,336.72,199.71,199.64,0.03515552]
[1756728840422,336.72,199.71,199.65,7.42]
[1756728841035,0.87185269,199.72,199.65,7.42]
[1756728847935,24.42,199.74,199.65,9.62761432]
[1756728848342,3.88,199.8,199.68,2.20761432]
[1756728848642,6.95920497,199.8,199.69,8.04]
[1756728848833,6.95920497,199.8,199.68,2.24613174]
[1756728848834,3.07920497,199.8,199.72,8.04]
[1756728849033,336.7,199.82,199.74,2.20761432]
[1756728849338,336.7,199.82,199.75,8.04]
[1756728851836,3.88,199.86,199.75,8.04]
[1756728852042,123.36,199.84,199.75,8.04]
[1756728852438,6.08761432,199.89,199.78,8.04]
[1756728852637,27.26,199.88,199.78,8.07569271]
[1756728856835,29.46761432,199.88,199.78,8.07569271]
[1756728862355,27.26,199.88,199.8,8.04]
[1756728863056,27.26,199.88,199.82,0.03178077]
[1756728866857,31.14,199.88,199.82,0.03178077]
[1756728873867,3.88,199.86,199.82,0.03178077]
[1756728874065,3.88,199.83,199.82,0.03178077]
[1756728884574,60.07761432,199.85,199.82,0.03178077]
[1756728885076,3.87,199.84,199.82,0.03178077]
[1756728887278,56.20761432,199.85,199.82,0.03178077]
[1756728888178,3.87,199.84,199.82,0.03178077]
[1756728888571,56.20761432,199.85,199.82,0.03178077]
[1756728888776,3.87,199.84,199.82,0.03178077]
[1756728890382,56.20761432,199.85,199.82,0.03178077]
[1756728890578,3.87,199.84,199.82,0.03178077]
[1756728891381,6.07761432,199.84,199.82,0.03178077]
[1756728891583,2.20761432,199.84,199.82,0.03178077]
[1756728891773,3.87,199.83,199.82,0.03178077]
[1756728893077,6.07761432,199.84,199.82,0.03178077]
[1756728894879,3.87,199.84,199.82,0.03178077]
[1756728897589,3.89,199.84,199.82,0.03178077]
[1756728899482,56.20761432,199.85,199.82,0.03178077]
[1756728900083,3.89,199.84,199.82,0.03178077]
[1756728900289,6.09761432,199.84,199.82,0.03178077]
[1756728900489,3.89,199.83,199.82,0.03178077]
[1756728901391,3.89,199.83,199.72,7.39]
[1756728901595,2.20761432,199.81,199.72,7.39]
[1756728902489,2.20761432,199.81,199.72,9.59761432]
[1756728902692,0.03428461,199.78,199.72,9.59761432]
[1756728904791,0.03428461,199.78,199.72,2.20761432]
[1756728904990,0.03428461,199.78,199.72,9.59761432]
[1756728905488,0.03428461,199.78,199.72,7.39]
[1756728907294,6.13189893,199.78,199.69,7.39]
[1756728907796,3.92428461,199.78,199.69,7.39]
[1756728908692,3.89,199.77,199.66,14.23671934]
[1756728908896,2.20761432,199.76,199.66,10.05761432]
[1756728909097,2.20761432,199.76,199.66,7.85]
[1756728911298,2.20761432,199.76,199.66,10.05761432]
[1756728911495,2.20761432,199.76,199.67,7.85]
[1756728911797,25.04,199.78,199.67,7.85]
[1756728913298,3.89,199.82,199.67,7.85]
[1756728913599,2.20761432,199.8,199.67,7.85]
[1756728914701,6.09761432,199.8,199.67,7.85]
[1756728917705,0.03738014,199.75,199.67,7.85]
[1756728917900,0.03738014,199.75,199.69,2.20761432]
[1756728918103,0.03738014,199.75,199.72,2.20761432]
[1756728918302,0.03738014,199.75,199.73,7.85]
[1756728918505,2.20761432,199.82,199.73,7.85]
[1756728918703,342.61761432,199.86,199.75,2.20761432]
[1756728919006,459.6,199.86,199.76,7.85]
[1756728920204,463.49,199.86,199.76,7.85]
[1756728922608,459.6,199.86,199.76,7.85]
[1756728922806,6.09761432,199.84,199.72,12.02910502]
[1756728923005,6.09761432,199.84,199.72,7.85]
[1756728923206,2.20761432,199.84,199.72,7.85]
[1756728923416,123.06,199.83,199.73,7.85]
[1756728924707,126.95,199.83,199.73,7.85]
[1756728925508,126.95,199.83,199.71,6.38671934]
[1756728925509,3.89,199.82,199.71,2.20761432]
[1756728926213,3.89,199.82,199.71,10.05761432]
[1756728927408,123.06,199.83,199.72,7.85]
[1756728927809,3.89,199.86,199.72,7.85]
[1756728928015,2.20761432,199.85,199.72,7.85]
[1756728928314,23.76,199.84,199.72,7.85]
[1756728929307,3.89,199.83,199.72,7.85]
[1756728930310,23.76,199.84,199.75,7.85]
[1756728930612,48.26,199.85,199.75,7.85]
[1756728930814,3.89,199.86,199.75,7.85]
[1756728931004,338.70761432,199.9,199.78,7.85]
[1756728931208,29.76,199.89,199.78,7.85]
[1756728931714,338.70761432,199.9,199.78,7.85]
[1756728931910,123.02,199.89,199.81,7.85]
[1756728932507,0.03606737,199.87,199.81,7.85]
[1756728934411,0.03606737,199.87,199.8,2.20761432]
[1756728934616,2.24368169,199.87,199.77,7.85]
[1756728935114,2.20761432,199.87,199.77,7.85]
[1756728936616,338.70761432,199.9,199.77,7.85]
[1756728936914,123.0,199.86,199.77,7.85]
[1756728937710,122.98,199.87,199.77,7.85]
[1756728942718,122.98,199.87,199.78,2.20761432]
[1756728945022,122.98,199.87,199.77,7.85]
[1756728945222,122.98,199.87,199.78,2.20761432]
[1756728945920,3.89,199.89,199.78,2.20761432]
[1756728946125,6.1,199.88,199.78,2.20761432]
[1756728948125,31.31,199.89,199.79,8.04]
[1756728948426,31.31,199.89,199.81,2.20761432]
[1756728948427,3.89,199.89,199.81,2.20761432]
[1756728948928,4.76101255,199.92,199.82,8.04]
[1756728951428,4.76101255,199.92,199.83,4.53997817]
[1756728951724,4.76101255,199.92,199.84,4.53997817]
[1756728951923,4.76101255,199.92,199.85,4.53997817]
[1756728952127,4.76101255,199.92,199.86,4.53997817]
[1756728952329,0.87101255,199.92,199.87,4.53997129]
[1756728952522,0.87101255,199.92,199.88,4.53997129]
[1756728952716,3.89,199.91,199.89,4.53997129]
[1756728952926,3.89,199.91,199.9,4.53997129]
[1756728953322,6.09761432,199.91,199.9,0.66997129]
[1756728953524,2.20761432,199.91,199.78,8.04]
[1756728953718,0.02,199.87,199.78,8.04]
[1756728961634,20.29761432,199.9,199.78,8.04]
[1756728963835,18.09,199.9,199.78,8.04]
[1756728966937,0.03,199.9,199.78,8.04]
[1756728967234,0.87101255,199.92,199.81,8.04]
[1756728967435,0.87101255,199.92,199.83,2.20761432]
[1756728967642,0.87101255,199.92,199.84,8.04]
[1756728968040,0.03,199.96,199.84,8.04]
[1756728968235,0.90088177,199.93,199.81,12.20689448]
[1756728968540,0.90088177,199.93,199.81,8.04]
[1756728971240,2.20761432,199.91,199.81,8.04]
[1756728971941,2.20761432,199.91,199.74,115.51112002]
[1756728971942,2.20761432,199.91,199.77,4.16689448]
[1756728972134,2.20761432,199.88,199.75,9.81761432]
[1756728972336,2.20761432,199.82,199.72,4.16689448]
[1756728972632,2.20761432,199.82,199.71,11.77689448]
[1756728973136,2.20761432,199.82,199.72,7.61]
[1756728975935,2.20761432,199.79,199.69,4.16689448]
[1756728976139,5.42761432,199.79,199.68,7.61]
[1756728976339,2.20761432,199.76,199.68,7.61]
[1756728976736,0.0336858,199.75,199.68,7.61]
[1756728979549,0.0336858,199.75,199.7,7.61]
[1756728980056,2.20761432,199.79,199.7,7.61]
[1756728981449,2.20761432,199.79,199.66,7.61]
[1756728981648,2.20761432,199.73,199.65,105.64742802]
[1756728981851,2.20761432,199.73,199.63,7.61]
[1756728983851,2.20761432,199.7,199.63,7.61]
[1756728984547,2.20761432,199.7,199.57,7.61]
[1756728984753,2.20761432,199.67,199.57,7.61]
[1756728984947,2.20761432,199.69,199.57,7.61]
[1756728986347,2.20761432,199.66,199.57,7.61]
[1756728986549,2.20761432,199.63,199.53,7.61]
[1756728989449,8.02761432,199.63,199.53,7.61]
[1756728989854,2.20761432,199.63,199.53,7.61]
[1756728990053,16.5,199.62,199.53,7.61]
[1756728990449,34.38761432,199.63,199.53,7.61]
[1756728991554,47.06,199.65,199.53,7.61]
[1756728991751,63.30761432,199.66,199.55,2.20761432]
[1756728991956,63.30761432,199.66,199.56,7.61]
[1756728992353,2.20761432,199.66,199.56,7.61]
[1756728995459,338.78761432,199.69,199.58,2.20761432]
[1756728995760,461.72761432,199.69,199.59,7.61]
[1756728999565,461.72761432,199.69,199.55,10.02761432]
[1756728999962,459.52,199.69,199.55,10.02761432]
[1756729000265,2.20761432,199.66,199.55,7.82]
[1756729002679,2.20761432,199.66,199.52,10.02761432]
[1756729003769,2.20761432,199.66,199.53,7.82]
[1756729003973,21.64,199.65,199.57,7.82]
[1756729007075,336.58,199.69,199.57,7.82]
[1756729007281,122.94,199.68,199.59,7.82]
[1756729007680,336.58,199.69,199.59,7.82]
[1756729007882,122.94,199.68,199.59,7.82]
[1756729009888,336.58,199.69,199.59,7.82]
[1756729010075,122.94,199.68,199.59,7.82]
[1756729012079,122.94,199.68,199.58,2.20761432]
[1756729012982,122.92,199.67,199.58,2.20761432]
[1756729014282,122.92,199.67,199.57,7.82]
[1756729014483,122.92,199.67,199.59,2.20761432]
[1756729014985,2.20761432,199.7,199.59,2.20761432]
[1756729015288,122.92,199.69,199.59,2.20761432]
[1756729016888,122.92,199.69,199.57,11.98689448]
[1756729017090,122.92,199.69,199.59,2.20761432]
[1756729017890,0.02,199.76,199.62,2.20761432]
[1756729018085,336.72,199.77,199.62,2.20761432]
[1756729018086,0.02,199.74,199.62,2.20761432]
[1756729018286,0.02,199.74,199.62,10.02761432]
[1756729020495,125.12761432,199.75,199.62,10.02761432]
[1756729020689,0.02,199.74,199.62,10.02761432]
[1756729022192,336.72,199.77,199.66,7.82]
[1756729022193,122.9,199.76,199.66,7.82]
[1756729026600,122.92,199.76,199.66,7.82]
[1756729031700,122.92,199.76,199.62,6.38002384]
[1756729031899,122.92,199.76,199.63,10.03761432]
[1756729031900,2.20761432,199.75,199.63,10.03761432]
[1756729032397,122.9,199.76,199.63,10.03761432]
[1756729035603,2.20761432,199.75,199.63,10.03761432]
[1756729035901,2.20761432,199.75,199.61,10.03761432]
[1756729036105,2.20761432,199.75,199.61,14.21002384]
[1756729036496,2.20761432,199.72,199.61,2.20761432]
[1756729036697,122.86,199.71,199.61,2.20761432]
[1756729037104,2.20761432,199.69,199.57,7.83]
[1756729037407,2.20761432,199.66,199.57,7.83]
[1756729037602,122.86,199.65,199.57,7.83]
[1756729039004,0.0329064,199.63,199.57,7.83]
[1756729045605,0.0329064,199.63,199.59,2.20761432]
[1756729046207,0.0329064,199.63,199.6,7.83]
[1756729046511,0.0329064,199.63,199.59,2.20761432]
[1756729046709,0.0329064,199.63,199.6,7.83]
[1756729047111,0.0329064,199.63,199.59,2.20761432]
[1756729047413,0.0329064,199.63,199.6,7.83]
[1756729050411,16.16761432,199.76,199.63,7.83]
[1756729051412,0.04,199.76,199.65,2.20761432]
[1756729051612,122.9,199.76,199.68,0.03697901]
[1756729062728,0.04,199.76,199.68,0.03697901]
[1756729062931,2.20761432,199.83,199.71,9.87761432]
[1756729063137,2.25761432,199.84,199.71,9.87761432]
[1756729063439,122.82,199.83,199.74,2.20761432]
[1756729063735,122.82,199.83,199.76,0.03741723]
[1756729065639,336.64,199.85,199.77,2.20761432]
[1756729066538,122.82,199.87,199.8,2.20761432]
[1756729067436,2.25761432,199.91,199.82,0.03571007]
[1756729067630,81.8,199.9,199.82,0.03571007]
[1756729069136,0.05,199.89,199.82,0.03571007]
[1756729070240,81.8,199.9,199.82,0.03571007]
[1756729071235,81.85,199.9,199.82,0.03571007]
[1756729072745,0.05,199.9,199.82,0.03571007]
[1756729073846,19.9,199.91,199.82,0.03571007]
[1756729074841,0.92088177,199.93,199.82,0.03571007]
[1756729075141,336.65,199.97,199.86,2.20761432]
[1756729075845,336.65,199.97,199.9,0.03279752]
[1756729080844,0.92074013,199.97,199.9,0.03279752]
[1756729081047,0.87074013,199.97,199.9,0.03279752]
[1756729081245,14.62,199.99,199.92,2.20761432]
[1756729088553,29.47047876,200.02,199.92,10.34761432]
[1756729088851,29.47047876,200.02,199.9,0.03279752]
[1756729088852,0.04,200.01,199.9,0.03279752]
[1756729089146,0.04,200.01,199.91,2.20761432]
[1756729089350,0.04,200.01,199.94,0.0380741]
[1756729093250,0.87047876,200.02,199.94,0.0380741]
[1756729093457,72.98,200.04,199.94,0.0380741]
[1756729093651,0.87050054,200.03,199.94,0.0380741]
[1756729093856,0.87050054,200.03,199.93,8.14]
[1756729094256,0.87050054,200.03,199.97,0.03852479]
[1756729094753,2.24761432,200.02,199.97,0.03852479]
[1756729095353,0.87050054,200.03,199.97,0.03852479]
[1756729095559,0.04,200.0,199.97,0.03852479]
[1756729095752,2.20761432,200.01,199.97,0.03852479]
[1756729095948,0.04,200.0,199.97,0.03852479]
[1756729096553,124.84761432,200.01,199.97,0.03852479]
[1756729096758,0.04,200.0,199.97,0.03852479]
[1756729097150,124.84761432,200.01,199.97,0.03852479]
[1756729097657,0.04,200.0,199.97,0.03852479]
[1756729097854,124.84761432,200.01,199.97,0.03852479]
[1756729098050,0.04,200.0,199.97,0.03852479]
[1756729099358,2.20761432,199.98,199.84,8.14]
[1756729099563,2.20761432,199.95,199.84,8.14]
[1756729099757,2.24508705,200.0,199.84,8.14]
[1756729100057,2.20761432,199.94,199.84,8.14]
[1756729100659,0.03642903,199.91,199.84,8.14]
[1756729106855,2.24404335,199.91,199.81,10.34761432]
[1756729109066,2.24404335,199.91,199.81,8.14]
[1756729109361,2.24404335,199.91,199.71,5.61905145]
[1756729109362,2.20761432,199.88,199.77,2.20761432]
[1756729109562,7.38761432,199.88,199.77,2.20761432]
[1756729110164,0.03694233,199.84,199.77,2.20761432]
[1756729113476,0.03694233,199.84,199.76,8.14]
[1756729113661,2.20761432,199.82,199.72,8.14]
[1756729114270,0.03797877,199.79,199.72,8.14]
[1756729114470,0.03797877,199.79,199.72,10.34761432]
[1756729115069,0.03797877,199.79,199.73,8.14]
[1756729116666,0.03797877,199.79,199.75,2.20761432]
[1756729116873,0.03797877,199.79,199.76,8.14]
[1756729117071,0.03797877,199.79,199.75,2.20761432]
[1756729117269,0.03797877,199.79,199.76,8.14]
[1756729117469,0.03797877,199.79,199.75,2.20761432]
[1756729117670,0.03797877,199.79,199.72,10.34761432]
[1756729117867,0.03797877,199.79,199.73,8.14]
[1756729119567,0.03797877,199.79,199.76,7.98]
[1756729119774,0.03797877,199.79,199.75,2.20761432]
[1756729119970,0.03797877,199.79,199.78,2.20761432]
[1756729120572,0.03797877,199.79,199.78,6.73617077]
[1756729121772,0.03797877,199.79,199.78,4.52855645]
[1756729129686,0.03797877,199.79,199.72,2.20761432]
[1756729129885,0.03797877,199.79,199.73,4.52724188]
[1756729130086,0.03797877,199.79,199.74,4.52724188]
[1756729130290,0.03797877,199.79,199.75,4.52724188]
[1756729130482,0.03797877,199.79,199.76,4.52724188]
[1756729130684,0.03797877,199.79,199.77,4.52724188]
[1756729130982,0.03797877,199.79,199.78,4.52724188]
[1756729134994,338.46761432,199.95,199.78,5.02724188]
[1756729135294,6.88,199.94,199.83,2.20761432]
[1756729135491,6.88,199.94,199.84,4.52724188]
[1756729135694,6.88,199.94,199.85,4.52724188]
[1756729135894,6.88,199.94,199.86,4.52724188]
[1756729136094,6.88,199.94,199.87,4.52724188]
[1756729136293,6.88,199.94,199.88,4.52724188]
[1756729136495,6.88,199.94,199.89,4.52724188]
[1756729136688,6.88,199.94,199.82,2.20761432]
[1756729136891,6.88,199.94,199.9,0.03369912]
[1756729137289,6.88,199.94,199.82,2.20761432]
[1756729137494,6.88,199.94,199.9,0.03246687]
[1756729137795,6.88,199.94,199.82,2.20761432]
[1756729137995,6.88,199.94,199.83,4.52920869]
[1756729138299,6.88,199.94,199.9,0.03593445]
[1756729140094,2.20761432,199.92,199.9,0.03593445]
[1756729140603,2.20761432,199.91,199.9,0.03593445]
[1756729141004,2.70761432,199.91,199.9,0.03593445]
[1756729141706,2.70761432,199.91,199.75,2.20761432]
[1756729141900,2.20761432,199.87,199.76,4.54259922]
[1756729142096,17.56,199.86,199.77,4.54259922]
[1756729142302,17.56,199.86,199.78,4.54259922]
[1756729142605,17.56,199.86,199.79,4.54259922]
[1756729142805,0.03809992,199.84,199.8,4.54259922]
[1756729143004,0.03809992,199.84,199.81,4.54259922]
[1756729143207,0.03809992,199.84,199.82,4.54259922]
[1756729143407,0.03809992,199.84,199.75,2.20761432]
[1756729143408,0.03809992,199.84,199.83,4.54259922]
[1756729150114,0.03809992,199.84,199.83,4.56112807]
[1756729153113,0.53809992,199.84,199.71,8.02]
[1756729153319,2.20761432,199.83,199.71,8.02]
[1756729153716,17.56,199.86,199.71,8.02]
[1756729153913,0.03523024,199.79,199.71,8.02]
[1756729175535,2.20761432,199.78,199.67,8.02]
[1756729175722,2.20761432,199.75,199.67,8.02]
[1756729175929,2.20761432,199.75,199.62,4.17240952]
[1756729175930,2.20761432,199.72,199.63,8.02]
[1756729176729,2.20761432,199.69,199.59,8.02]
[1756729177529,0.03503106,199.66,199.59,8.02]
[1756729179337,5.48761432,199.73,199.62,8.1]
[1756729180531,5.48761432,199.73,199.66,0.03199044]
[1756729181332,2.20761432,199.73,199.66,0.03199044]
[1756729181536,13.80761432,199.73,199.66,0.03199044]
[1756729183135,19.82,199.74,199.66,0.03199044]
[1756729183535,19.82,199.74,199.65,8.1]
[1756729183841,21.54,199.77,199.68,0.03798242]
[1756729184040,36.82,199.78,199.68,8.13798242]
[1756729185339,53.50761432,199.79,199.68,10.34559674]
[1756729186130,2.20761432,199.79,199.69,8.1]
[1756729186337,16.06,199.81,199.71,2.20761432]
[1756729186639,2.23761432,199.82,199.71,10.30761432]
[1756729186931,46.79761432,199.82,199.74,0.03563253]
[1756729187644,2.20761432,199.79,199.74,0.03563253]
[1756729187842,0.03,199.78,199.74,0.03563253]
[1756729189535,2.23761432,199.79,199.74,0.03563253]
[1756729189739,2.20761432,199.79,199.74,0.03563253]
[1756729191744,0.03,199.83,199.74,0.03563253]
[1756729191941,2.20761432,199.81,199.74,0.03563253]
[1756729194436,0.03,199.8,199.74,0.03563253]
[1756729200742,0.03,199.77,199.74,0.03563253]
[1756729200938,2.23761432,199.78,199.74,0.03563253]
[1756729201547,2.20761432,199.78,199.74,8.13563253]
[1756729201748,31.78761432,199.81,199.74,8.13563253]
[1756729202942,31.78761432,199.81,199.74,0.03563253]
[1756729203143,2.20761432,199.78,199.74,0.03563253]
[1756729206845,2.23761432,199.78,199.74,0.03563253]
[1756729207447,0.03,199.77,199.74,0.03563253]
[1756729208157,2.20761432,199.78,199.74,0.03563253]
[1756729208647,2.25761432,199.78,199.74,0.03563253]
[1756729209242,0.05,199.77,199.74,0.03563253]
[1756729209753,2.25761432,199.75,199.74,0.03563253]
[1756729219452,22.02,199.76,199.74,0.03563253]
[1756729220660,2.20761432,199.75,199.74,0.03563253]
[1756729221754,2.20761432,199.78,199.74,0.03563253]
[1756729221961,2.20761432,199.79,199.75,7.37]
[1756729222562,2.20761432,199.79,199.74,0.03563253]
[1756729224656,2.25761432,199.79,199.74,0.03563253]
[1756729226871,2.20761432,199.79,199.74,0.03563253]
[1756729227073,29.64,199.8,199.74,0.03563253]
[1756729230177,2.20761432,199.78,199.74,0.03563253]
[1756729232481,2.20761432,199.78,199.75,4.59612861]
[1756729232681,2.20761432,199.78,199.76,4.59612861]
[1756729232880,2.20761432,199.78,199.77,4.59612861]
[1756729233576,2.25761432,199.78,199.77,4.59612861]
[1756729234481,2.25761432,199.78,199.74,0.03563253]
[1756729234779,2.25761432,199.78,199.75,4.5957993]
[1756729234981,2.25761432,199.78,199.76,4.5957993]
[1756729235181,2.25761432,199.78,199.77,4.5957993]
[1756729235581,39.64761432,199.78,199.77,4.5957993]
[1756729236184,39.69761432,199.78,199.77,4.5957993]
[1756729236377,0.05,199.77,199.74,0.03563253]
[1756729236572,2.25761432,199.75,199.74,0.03563253]
[1756729236772,2.25761432,199.75,199.64,7.37]
[1756729237977,0.03420189,199.71,199.64,7.37]
[1756729238483,0.03420189,199.71,199.64,11.54240952]
[1756729238684,0.03420189,199.71,199.65,7.45]
[1756729239984,0.03420189,199.71,199.62,4.17240952]
[1756729240185,2.20761432,199.69,199.62,4.17240952]
[1756729240381,2.20761432,199.69,199.61,7.45]
[1756729240583,0.03420189,199.71,199.61,7.45]
[1756729240584,2.20761432,199.66,199.61,7.45]
[1756729241081,0.03523098,199.65,199.61,7.45]
[1756729241480,0.03523098,199.65,199.57,11.62240952]
[1756729241784,2.20761432,199.64,199.57,11.62240952]
[1756729242185,2.20761432,199.64,199.57,7.45]
[1756729243986,0.03523098,199.65,199.57,7.45]
[1756729248380,0.03523098,199.65,199.58,4.59183229]
[1756729248588,0.03523098,199.65,199.59,4.59183229]
[1756729248788,0.03523098,199.65,199.6,4.59183229]
[1756729248987,0.03523098,199.65,199.61,4.59183229]
[1756729249190,0.04,199.64,199.62,4.59183229]
[1756729249386,2.20761432,199.63,199.57,7.45]
[1756729249592,2.20761432,199.63,199.58,4.59154582]
[1756729249891,2.20761432,199.63,199.59,4.59154582]
[1756729250190,2.20761432,199.63,199.6,4.59154582]
[1756729250391,2.20761432,199.63,199.61,4.59154582]
[1756729250593,2.20761432,199.63,199.62,4.59154582]
[1756729250991,0.03523098,199.65,199.62,4.59154582]
[1756729251192,0.03523098,199.65,199.63,4.59154582]
[1756729251391,0.03523098,199.65,199.64,4.59154582]
[1756729251590,0.03523098,199.65,199.64,12.04154582]
[1756729253592,82.0,199.71,199.64,12.04154582]
[1756729253593,82.0,199.71,199.65,7.45]
[1756729253792,82.0,199.71,199.66,4.59154582]
[1756729253991,82.0,199.71,199.67,12.04154582]
[1756729254294,82.0,199.71,199.68,4.59154582]
[1756729254496,82.0,199.71,199.69,4.59154582]
[1756729254796,82.0,199.71,199.7,4.59154582]
[1756729255191,338.80761432,199.74,199.7,4.59154582]
[1756729255394,122.74,199.73,199.71,4.59154582]
[1756729255792,122.74,199.73,199.72,4.58411128]
[1756729258298,122.82,199.73,199.72,4.58411128]
[1756729259405,122.82,199.73,199.72,4.5846512]
[1756729259995,123.32,199.73,199.72,4.5846512]
[1756729260600,123.32,199.73,199.68,0.03210898]
[1756729260799,2.28761432,199.71,199.68,0.03210898]
[1756729260994,2.20761432,199.71,199.68,0.03210898]
[1756729262406,0.08,199.69,199.56,7.45]
[1756729262599,2.20761432,199.64,199.56,7.45]
[1756729262900,21.9,199.63,199.56,7.45]
[1756729263697,0.03285053,199.61,199.56,7.45]
[1756729263897,0.03285053,199.61,199.52,4.17240952]
[1756729264102,0.03285053,199.61,199.53,7.45]
[1756729264312,2.53285053,199.61,199.54,7.45]
[1756729265808,0.03285053,199.61,199.54,9.65761432]
[1756729266007,0.03285053,199.61,199.55,7.45]